[Event "Late-Titled-Tuesday-Blitz-November-28-2023"]
[Site "Chess.com"]
[Date "2023.11.28"]
[Round "2"]
[White "PoXerStar"]
[Black "morte-negra"]
[Result "1-0"]
[WhiteElo "2391"]
[BlackElo "2021"]
[TimeControl "180+1"]
[EndTime "14:16:52 PST"]
[Termination "PoXerStar won on time"]

1. e4 {[%clk 0:03:00.9]} 1... c5 {[%clk 0:02:58.7]} 2. Nf3 {[%clk 0:03:00.4]}
2... d6 {[%clk 0:02:59.2]} 3. d4 {[%clk 0:03:00.7]} 3... cxd4 {[%clk 0:02:59.8]}
4. Nxd4 {[%clk 0:03:01.6]} 4... Nf6 {[%clk 0:02:58.6]} 5. Nc3 {[%clk 0:03:01.9]}
5... a6 {[%clk 0:02:59.1]} 6. Bc4 {[%clk 0:02:58.7]} 6... e6 {[%clk 0:02:59]} 7.
Bb3 {[%clk 0:02:58.5]} 7... b5 {[%clk 0:02:57.4]} 8. O-O {[%clk 0:02:58]} 8...
Qc7 {[%clk 0:02:51.7]} 9. Be3 {[%clk 0:02:37.9]} 9... Nc6 {[%clk 0:02:49.6]} 10.
Qf3 {[%clk 0:02:20.8]} 10... Nxd4 {[%clk 0:02:45.6]} 11. Bxd4 {[%clk 0:02:21.7]}
11... Be7 {[%clk 0:02:45.7]} 12. Qg3 {[%clk 0:02:02.4]} 12... O-O {[%clk
0:02:43.2]} 13. e5 {[%clk 0:01:55.4]} 13... dxe5 {[%clk 0:02:28.5]} 14. Bxe5
{[%clk 0:01:56.3]} 14... Qc6 {[%clk 0:02:28.9]} 15. Rfe1 {[%clk 0:01:42.3]}
15... Bb7 {[%clk 0:02:27.8]} 16. Ne4 {[%clk 0:01:39.9]} 16... Kh8 {[%clk
0:01:40.8]} 17. f3 {[%clk 0:00:59.6]} 17... h6 {[%clk 0:00:56.5]} 18. Bxf6
{[%clk 0:00:46.7]} 18... gxf6 {[%clk 0:00:38.7]} 19. Qh4 {[%clk 0:00:45.2]}
19... Kg7 {[%clk 0:00:36.3]} 20. Ng3 {[%clk 0:00:45.5]} 20... Qc5+ {[%clk
0:00:29.7]} 21. Kh1 {[%clk 0:00:45.4]} 21... Qg5 {[%clk 0:00:24.9]} 22. Qxg5+
{[%clk 0:00:25.1]} 22... hxg5 {[%clk 0:00:24.7]} 23. Nf5+ {[%clk 0:00:25.5]}
23... exf5 {[%clk 0:00:22.5]} 24. Rxe7 {[%clk 0:00:26.4]} 24... Bc6 {[%clk
0:00:14.9]} 25. Rd1 {[%clk 0:00:25.4]} 25... Be8 {[%clk 0:00:11.4]} 26. Kg1
{[%clk 0:00:22.9]} 26... Rh8 {[%clk 0:00:11]} 27. h3 {[%clk 0:00:22.1]} 27...
Kf8 {[%clk 0:00:08.7]} 28. Rc7 {[%clk 0:00:20.2]} 28... Rh4 {[%clk 0:00:08.7]}
29. Rd6 {[%clk 0:00:19.4]} 29... Kg7 {[%clk 0:00:07.1]} 30. Rb6 {[%clk
0:00:18.3]} 30... Rh6 {[%clk 0:00:04.4]} 31. Rbb7 {[%clk 0:00:18.1]} 31... Kf8
{[%clk 0:00:01.8]} 32. Bxf7 {[%clk 0:00:17.5]} 32... Bxf7 {[%clk 0:00:02.3]} 33.
Rxf7+ {[%clk 0:00:18.4]} 33... Kg8 {[%clk 0:00:02.2]} 34. Rg7+ {[%clk
0:00:17.7]} 34... Kh8 {[%clk 0:00:01.8]} 35. Rge7 {[%clk 0:00:16.7]} 35... Kg8
{[%clk 0:00:01.3]} 36. Ra7 {[%clk 0:00:16.5]} 1-0

[Event "Late-Titled-Tuesday-Blitz-November-28-2023"]
[Site "Chess.com"]
[Date "2023.11.28"]
[Round "2"]
[White "Mikhail_Golubev"]
[Black "Felix-Rose"]
[Result "1-0"]
[WhiteElo "2595"]
[BlackElo "2338"]
[TimeControl "180+1"]
[EndTime "14:16:53 PST"]
[Termination "Mikhail_Golubev won on time"]

1. e4 {[%clk 0:03:00.9]} 1... c5 {[%clk 0:02:59.4]} 2. Ne2 {[%clk 0:03:00.9]}
2... g6 {[%clk 0:02:58.4]} 3. d4 {[%clk 0:03:00.1]} 3... cxd4 {[%clk 0:02:59.3]}
4. Nxd4 {[%clk 0:03:00.5]} 4... Nc6 {[%clk 0:02:59.8]} 5. Nc3 {[%clk 0:03:00.7]}
5... Bg7 {[%clk 0:02:59.9]} 6. Be3 {[%clk 0:03:01.2]} 6... Nf6 {[%clk 0:03:00]}
7. Bc4 {[%clk 0:03:01.5]} 7... O-O {[%clk 0:02:59.7]} 8. Bb3 {[%clk 0:02:59.4]}
8... a5 {[%clk 0:03:00]} 9. O-O {[%clk 0:02:55]} 9... Nxd4 {[%clk 0:02:58]} 10.
Bxd4 {[%clk 0:02:53.3]} 10... d6 {[%clk 0:02:58.5]} 11. Re1 {[%clk 0:02:48.7]}
11... Bd7 {[%clk 0:02:58.6]} 12. a4 {[%clk 0:02:48.1]} 12... Bc6 {[%clk
0:02:58.5]} 13. Qd2 {[%clk 0:02:39.2]} 13... Nd7 {[%clk 0:02:56.8]} 14. Rad1
{[%clk 0:02:35.8]} 14... Bxd4 {[%clk 0:02:53.6]} 15. Qxd4 {[%clk 0:02:35.6]}
15... Qb6 {[%clk 0:02:53.5]} 16. Qd2 {[%clk 0:02:35.2]} 16... Nc5 {[%clk
0:02:49.7]} 17. Qh6 {[%clk 0:02:12.2]} 17... Nxb3 {[%clk 0:02:34.5]} 18. cxb3
{[%clk 0:02:11.7]} 18... Qxb3 {[%clk 0:01:45.7]} 19. Rd2 {[%clk 0:01:45.1]}
19... f6 {[%clk 0:01:37.3]} 20. Nd5 {[%clk 0:01:39.3]} 20... Bxd5 {[%clk
0:01:27.2]} 21. exd5 {[%clk 0:01:38.9]} 21... Rf7 {[%clk 0:01:24.7]} 22. Qf4
{[%clk 0:01:17.4]} 22... Rc8 {[%clk 0:01:17.9]} 23. h4 {[%clk 0:01:15.9]} 23...
Rc4 {[%clk 0:01:16.2]} 24. Re4 {[%clk 0:01:07.1]} 24... g5 {[%clk 0:00:22.6]}
25. Qf5 {[%clk 0:00:48.3]} 25... Qxa4 {[%clk 0:00:11.8]} 26. Rde2 {[%clk
0:00:33]} 26... Rxe4 {[%clk 0:00:09.4]} 27. Rxe4 {[%clk 0:00:33.4]} 27... Qd1+
{[%clk 0:00:09.5]} 28. Kh2 {[%clk 0:00:32.7]} 28... Qh5 {[%clk 0:00:05]} 29.
Qc8+ {[%clk 0:00:20.6]} 29... Kg7 {[%clk 0:00:04.7]} 30. Qxb7 {[%clk 0:00:19.8]}
30... gxh4 {[%clk 0:00:03.1]} 31. Qb3 {[%clk 0:00:14.3]} 31... f5 {[%clk
0:00:01.2]} 32. Rf4 {[%clk 0:00:11.3]} 1-0

[Event "Late-Titled-Tuesday-Blitz-November-28-2023"]
[Site "Chess.com"]
[Date "2023.11.28"]
[Round "2"]
[White "subham777"]
[Black "MeisterJabo"]
[Result "1-0"]
[WhiteElo "2658"]
[BlackElo "2264"]
[TimeControl "180+1"]
[EndTime "14:16:54 PST"]
[Termination "subham777 won on time"]

1. e4 {[%clk 0:03:00.9]} 1... e5 {[%clk 0:02:59.4]} 2. Nf3 {[%clk 0:03:00.6]}
2... Nc6 {[%clk 0:02:59.6]} 3. Bc4 {[%clk 0:02:59.7]} 3... Nf6 {[%clk
0:02:58.1]} 4. d3 {[%clk 0:02:58.7]} 4... d5 {[%clk 0:02:57.9]} 5. exd5 {[%clk
0:02:58.8]} 5... Nxd5 {[%clk 0:02:58.8]} 6. O-O {[%clk 0:02:56.8]} 6... Nb6
{[%clk 0:02:57.7]} 7. Bb3 {[%clk 0:02:55.6]} 7... Be7 {[%clk 0:02:22.6]} 8. Re1
{[%clk 0:02:54.7]} 8... Bg4 {[%clk 0:02:17.7]} 9. h3 {[%clk 0:02:53.9]} 9... Bh5
{[%clk 0:02:16.9]} 10. g4 {[%clk 0:02:53.2]} 10... Bg6 {[%clk 0:02:17]} 11. Nxe5
{[%clk 0:02:52.8]} 11... Nxe5 {[%clk 0:02:17.9]} 12. Rxe5 {[%clk 0:02:52.5]}
12... O-O {[%clk 0:02:18.7]} 13. Qf3 {[%clk 0:02:45.3]} 13... c6 {[%clk
0:02:13]} 14. Nc3 {[%clk 0:02:41.7]} 14... Kh8 {[%clk 0:01:41.3]} 15. Bf4 {[%clk
0:02:26.1]} 15... f5 {[%clk 0:01:19.1]} 16. Bg3 {[%clk 0:01:26.2]} 16... f4
{[%clk 0:01:05.4]} 17. Bh2 {[%clk 0:01:23.3]} 17... Bf6 {[%clk 0:01:04.6]} 18.
Ree1 {[%clk 0:01:20.9]} 18... Bxc3 {[%clk 0:01:03.1]} 19. bxc3 {[%clk
0:01:20.5]} 19... Qf6 {[%clk 0:01:02.3]} 20. d4 {[%clk 0:01:17.5]} 20... Rae8
{[%clk 0:00:58]} 21. Rxe8 {[%clk 0:01:10.9]} 21... Bxe8 {[%clk 0:00:57.5]} 22.
Re1 {[%clk 0:01:09.1]} 22... Bd7 {[%clk 0:00:55.4]} 23. Re4 {[%clk 0:01:02.9]}
23... g5 {[%clk 0:00:54.6]} 24. Re5 {[%clk 0:00:54.8]} 24... h6 {[%clk
0:00:54.3]} 25. Qe4 {[%clk 0:00:53.2]} 25... Nd5 {[%clk 0:00:41.8]} 26. Bxd5
{[%clk 0:00:35.3]} 26... cxd5 {[%clk 0:00:41.8]} 27. Qxd5 {[%clk 0:00:35.5]}
27... Qc6 {[%clk 0:00:13.4]} 28. Qxc6 {[%clk 0:00:32]} 28... Bxc6 {[%clk
0:00:14.3]} 29. c4 {[%clk 0:00:27.3]} 29... Kg7 {[%clk 0:00:12.7]} 30. d5 {[%clk
0:00:27.1]} 30... Ba4 {[%clk 0:00:12.9]} 31. c3 {[%clk 0:00:23.4]} 31... Bd1
{[%clk 0:00:13.4]} 32. Kg2 {[%clk 0:00:18.6]} 32... Rf7 {[%clk 0:00:11.2]} 33.
f3 {[%clk 0:00:15.4]} 33... Rc7 {[%clk 0:00:10.1]} 34. Re4 {[%clk 0:00:15.6]}
34... Bc2 {[%clk 0:00:09.1]} 35. Rd4 {[%clk 0:00:15.8]} 35... Kf6 {[%clk
0:00:09.1]} 36. Bg1 {[%clk 0:00:16]} 36... b6 {[%clk 0:00:07.7]} 37. Rd2 {[%clk
0:00:16.1]} 37... Bb1 {[%clk 0:00:07.2]} 38. Bd4+ {[%clk 0:00:16.5]} 38... Kf7
{[%clk 0:00:06.9]} 39. d6 {[%clk 0:00:14.3]} 39... Rxc4 {[%clk 0:00:02.7]} 40.
d7 {[%clk 0:00:14.6]} 1-0

[Event "Late-Titled-Tuesday-Blitz-November-28-2023"]
[Site "Chess.com"]
[Date "2023.11.28"]
[Round "2"]
[White "Real_taiatai"]
[Black "NoHeThTo"]
[Result "0-1"]
[WhiteElo "2380"]
[BlackElo "2697"]
[TimeControl "180+1"]
[EndTime "14:16:59 PST"]
[Termination "NoHeThTo won by resignation"]

1. Nf3 {[%clk 0:03:00.9]} 1... Nf6 {[%clk 0:02:59.7]} 2. g3 {[%clk 0:03:00.6]}
2... g6 {[%clk 0:03:00.1]} 3. Bg2 {[%clk 0:03:01.1]} 3... Bg7 {[%clk 0:03:00.8]}
4. d4 {[%clk 0:03:00.1]} 4... O-O {[%clk 0:03:01.7]} 5. c4 {[%clk 0:03:00.4]}
5... d6 {[%clk 0:03:02.6]} 6. O-O {[%clk 0:03:00.9]} 6... Nc6 {[%clk 0:03:03]}
7. Nc3 {[%clk 0:02:59.4]} 7... e5 {[%clk 0:03:03.3]} 8. e4 {[%clk 0:02:55.4]}
8... Bg4 {[%clk 0:03:01.3]} 9. d5 {[%clk 0:02:49.6]} 9... Nd4 {[%clk 0:03:00.3]}
10. Be3 {[%clk 0:02:48.8]} 10... Re8 {[%clk 0:02:57.3]} 11. Re1 {[%clk
0:02:42.1]} 11... Qd7 {[%clk 0:02:53]} 12. Bxd4 {[%clk 0:01:59.3]} 12... exd4
{[%clk 0:02:52.3]} 13. Nb5 {[%clk 0:02:00.2]} 13... Nxe4 {[%clk 0:02:47.4]} 14.
Nbxd4 {[%clk 0:01:59.9]} 14... a5 {[%clk 0:02:40.3]} 15. Qc2 {[%clk 0:01:59.5]}
15... Nc5 {[%clk 0:02:37.9]} 16. Rad1 {[%clk 0:01:53.4]} 16... Rxe1+ {[%clk
0:02:31.1]} 17. Rxe1 {[%clk 0:01:53.5]} 17... Re8 {[%clk 0:02:31.2]} 18. Qc3
{[%clk 0:01:48.3]} 18... Bxf3 {[%clk 0:02:18.6]} 19. Rxe8+ {[%clk 0:01:44.5]}
19... Qxe8 {[%clk 0:02:06.5]} 20. Bxf3 {[%clk 0:01:45.4]} 20... Bxd4 {[%clk
0:02:00.3]} 21. Qxd4 {[%clk 0:01:46.3]} 21... Qe1+ {[%clk 0:02:00.1]} 22. Kg2
{[%clk 0:01:46.7]} 22... Qb1 {[%clk 0:01:59.9]} 23. h4 {[%clk 0:01:40.2]} 23...
Qd3 {[%clk 0:01:53.5]} 24. Qf6 {[%clk 0:01:38]} 24... Qxc4 {[%clk 0:01:33.7]}
25. h5 {[%clk 0:01:17.6]} 25... Kf8 {[%clk 0:00:27.7]} 26. h6 {[%clk 0:01:08.9]}
26... Ke8 {[%clk 0:00:27.6]} 27. Qh8+ {[%clk 0:01:06.8]} 27... Ke7 {[%clk
0:00:26.1]} 28. Qxh7 {[%clk 0:01:07.4]} 28... Qc2 {[%clk 0:00:25.6]} 29. Qh8
{[%clk 0:00:56]} 29... Nd3 {[%clk 0:00:23.2]} 30. Qd4 {[%clk 0:00:26.1]} 30...
Ne1+ {[%clk 0:00:22.1]} 31. Kf1 {[%clk 0:00:16.9]} 31... Nxf3 {[%clk 0:00:21.5]}
32. Qe3+ {[%clk 0:00:17.6]} 32... Ne5 {[%clk 0:00:20.5]} 33. h7 {[%clk
0:00:18.3]} 33... Qd1+ {[%clk 0:00:20.8]} 34. Kg2 {[%clk 0:00:17.9]} 34... Qh5
{[%clk 0:00:20.6]} 35. f4 {[%clk 0:00:16.9]} 35... Qxh7 {[%clk 0:00:20.9]} 36.
fxe5 {[%clk 0:00:17.5]} 36... dxe5 {[%clk 0:00:21.4]} 37. Qxe5+ {[%clk
0:00:17.8]} 37... Kd7 {[%clk 0:00:22.1]} 38. Qf6 {[%clk 0:00:17.8]} 38... Qg8
{[%clk 0:00:21.8]} 39. g4 {[%clk 0:00:17]} 39... Qe8 {[%clk 0:00:22.1]} 40. Qc3
{[%clk 0:00:15.3]} 40... Qe4+ {[%clk 0:00:22.1]} 41. Kg3 {[%clk 0:00:15.8]}
41... Qxd5 {[%clk 0:00:22.5]} 42. Qf6 {[%clk 0:00:16.1]} 42... Qd6+ {[%clk
0:00:22.7]} 43. Qxd6+ {[%clk 0:00:16.3]} 43... Kxd6 {[%clk 0:00:23.6]} 44. Kf4
{[%clk 0:00:17.2]} 44... Ke6 {[%clk 0:00:24.1]} 45. Kg5 {[%clk 0:00:17.4]} 45...
Ke5 {[%clk 0:00:24.6]} 46. Kh6 {[%clk 0:00:17.3]} 46... Kf4 {[%clk 0:00:25.1]}
47. g5 {[%clk 0:00:16.7]} 47... Kf5 {[%clk 0:00:25.4]} 48. Kg7 {[%clk
0:00:17.4]} 48... Kxg5 {[%clk 0:00:25.6]} 49. Kxf7 {[%clk 0:00:18.3]} 49... Kf5
{[%clk 0:00:26.2]} 0-1

[Event "Late-Titled-Tuesday-Blitz-November-28-2023"]
[Site "Chess.com"]
[Date "2023.11.28"]
[Round "2"]
[White "Mykola-Bortnyk"]
[Black "wannabe2700"]
[Result "0-1"]
[WhiteElo "3002"]
[BlackElo "2627"]
[TimeControl "180+1"]
[EndTime "14:17:00 PST"]
[Termination "wannabe2700 won on time"]

1. e4 {[%clk 0:02:58.8]} 1... d5 {[%clk 0:02:58.4]} 2. exd5 {[%clk 0:02:58]}
2... Qxd5 {[%clk 0:02:59.3]} 3. Nc3 {[%clk 0:02:58]} 3... Qa5 {[%clk 0:02:59.4]}
4. b4 {[%clk 0:02:58.2]} 4... Qxb4 {[%clk 0:02:58.5]} 5. Rb1 {[%clk 0:02:58.7]}
5... Qd6 {[%clk 0:02:57.5]} 6. d4 {[%clk 0:02:58.7]} 6... Nf6 {[%clk 0:02:56.1]}
7. Nf3 {[%clk 0:02:58.8]} 7... e6 {[%clk 0:02:53.3]} 8. Ne5 {[%clk 0:02:55.3]}
8... Qd8 {[%clk 0:02:42.7]} 9. Bc4 {[%clk 0:02:46.1]} 9... Nbd7 {[%clk
0:02:40.1]} 10. Qf3 {[%clk 0:02:43.4]} 10... Be7 {[%clk 0:02:00.2]} 11. O-O
{[%clk 0:02:27.6]} 11... O-O {[%clk 0:01:59.8]} 12. Rd1 {[%clk 0:02:09.8]} 12...
c6 {[%clk 0:01:58.8]} 13. Bd3 {[%clk 0:02:08.6]} 13... Nd5 {[%clk 0:01:54]} 14.
Qh3 {[%clk 0:02:05.2]} 14... g6 {[%clk 0:01:47.3]} 15. Ne4 {[%clk 0:02:03.1]}
15... f5 {[%clk 0:01:40.3]} 16. Nxd7 {[%clk 0:01:22.6]} 16... Bxd7 {[%clk
0:01:39.3]} 17. Nc5 {[%clk 0:01:14.5]} 17... Bxc5 {[%clk 0:01:30.9]} 18. dxc5
{[%clk 0:01:15.4]} 18... Nc3 {[%clk 0:01:30.9]} 19. Bh6 {[%clk 0:01:06.3]} 19...
Rf7 {[%clk 0:01:25.1]} 20. Bc4 {[%clk 0:00:58.1]} 20... Nxb1 {[%clk 0:01:15.4]}
21. Rxb1 {[%clk 0:00:51]} 21... Qe7 {[%clk 0:01:02.2]} 22. Qe3 {[%clk
0:00:49.6]} 22... Qh4 {[%clk 0:00:50.8]} 23. Qf4 {[%clk 0:00:21.3]} 23... Qxf4
{[%clk 0:00:43.8]} 24. Bxf4 {[%clk 0:00:22.2]} 24... b5 {[%clk 0:00:41.3]} 25.
Bb3 {[%clk 0:00:11.9]} 25... a5 {[%clk 0:00:41.1]} 26. a3 {[%clk 0:00:12.4]}
26... a4 {[%clk 0:00:35.5]} 27. Ba2 {[%clk 0:00:12.9]} 27... Kg7 {[%clk
0:00:24.7]} 28. Be5+ {[%clk 0:00:12.9]} 28... Kh6 {[%clk 0:00:24.6]} 29. h4
{[%clk 0:00:13.5]} 29... g5 {[%clk 0:00:24.5]} 30. hxg5+ {[%clk 0:00:11.1]}
30... Kxg5 {[%clk 0:00:25.4]} 31. Rd1 {[%clk 0:00:11.7]} 31... f4 {[%clk
0:00:23.9]} 32. g3 {[%clk 0:00:12.1]} 32... fxg3 {[%clk 0:00:23.3]} 33. fxg3
{[%clk 0:00:12.3]} 33... Raf8 {[%clk 0:00:21]} 34. Bf4+ {[%clk 0:00:13]} 34...
Kg4 {[%clk 0:00:20.5]} 35. c4 {[%clk 0:00:11.8]} 35... Bc8 {[%clk 0:00:18.6]}
36. cxb5 {[%clk 0:00:11.7]} 36... cxb5 {[%clk 0:00:19.5]} 37. c6 {[%clk
0:00:11.8]} 37... Rf5 {[%clk 0:00:17.2]} 38. Rc1 {[%clk 0:00:09.9]} 38... e5
{[%clk 0:00:17.2]} 39. Bh6 {[%clk 0:00:07.3]} 39... R8f6 {[%clk 0:00:16.3]} 40.
Be3 {[%clk 0:00:04.3]} 40... Rf3 {[%clk 0:00:15.7]} 41. Re1 {[%clk 0:00:01.3]}
41... Rxg3+ {[%clk 0:00:15.7]} 42. Kh2 {[%clk 0:00:02.2]} 42... Rf5 {[%clk
0:00:15.3]} 0-1

[Event "Late-Titled-Tuesday-Blitz-November-28-2023"]
[Site "Chess.com"]
[Date "2023.11.28"]
[Round "2"]
[White "Koksal06"]
[Black "VincentKeymer"]
[Result "1-0"]
[WhiteElo "2628"]
[BlackElo "2995"]
[TimeControl "180+1"]
[EndTime "14:17:07 PST"]
[Termination "Koksal06 won on time"]

1. d4 {[%clk 0:03:00.9]} 1... Nf6 {[%clk 0:02:58.4]} 2. c4 {[%clk 0:03:01.1]}
2... e6 {[%clk 0:02:58]} 3. Nf3 {[%clk 0:03:01.2]} 3... a6 {[%clk 0:02:55.7]} 4.
Nc3 {[%clk 0:02:59.7]} 4... Bb4 {[%clk 0:02:55.1]} 5. Bd2 {[%clk 0:02:57.4]}
5... O-O {[%clk 0:02:53.4]} 6. g3 {[%clk 0:02:57.6]} 6... Bxc3 {[%clk
0:02:49.7]} 7. Bxc3 {[%clk 0:02:57.4]} 7... b5 {[%clk 0:02:50.6]} 8. cxb5 {[%clk
0:02:02.5]} 8... axb5 {[%clk 0:02:48]} 9. Bg2 {[%clk 0:02:03.2]} 9... Bb7 {[%clk
0:02:47.7]} 10. O-O {[%clk 0:02:03.4]} 10... d6 {[%clk 0:02:44.8]} 11. b3 {[%clk
0:01:59.8]} 11... Be4 {[%clk 0:02:43.1]} 12. a4 {[%clk 0:01:52.6]} 12... Nc6
{[%clk 0:02:32.4]} 13. axb5 {[%clk 0:01:45.2]} 13... Na7 {[%clk 0:02:26]} 14. b6
{[%clk 0:01:21.4]} 14... cxb6 {[%clk 0:02:24.5]} 15. Qd2 {[%clk 0:01:09.9]}
15... h6 {[%clk 0:02:19.3]} 16. Bb2 {[%clk 0:01:06.9]} 16... Nc6 {[%clk
0:02:11.5]} 17. Rfc1 {[%clk 0:01:05.3]} 17... Qd7 {[%clk 0:02:09.8]} 18. Ne1
{[%clk 0:00:41.5]} 18... Bxg2 {[%clk 0:02:07.4]} 19. Nxg2 {[%clk 0:00:42.4]}
19... Na5 {[%clk 0:02:07.5]} 20. Qd3 {[%clk 0:00:40]} 20... Qb7 {[%clk
0:01:55.8]} 21. Ne3 {[%clk 0:00:38.2]} 21... Qe4 {[%clk 0:01:54.7]} 22. Qxe4
{[%clk 0:00:32.4]} 22... Nxe4 {[%clk 0:01:55.6]} 23. Ra3 {[%clk 0:00:31.7]}
23... Rfc8 {[%clk 0:01:51.5]} 24. Rca1 {[%clk 0:00:31.6]} 24... Rab8 {[%clk
0:01:49.7]} 25. d5 {[%clk 0:00:30.2]} 25... e5 {[%clk 0:01:44.6]} 26. Nf5 {[%clk
0:00:30.6]} 26... Rc2 {[%clk 0:01:26.1]} 27. Bc1 {[%clk 0:00:25.1]} 27... g6
{[%clk 0:01:14.7]} 28. Nxh6+ {[%clk 0:00:22.7]} 28... Kg7 {[%clk 0:01:15]} 29.
Ng4 {[%clk 0:00:23.1]} 29... Rxe2 {[%clk 0:01:11.6]} 30. Bh6+ {[%clk 0:00:23.5]}
30... Kh7 {[%clk 0:01:09.1]} 31. Be3 {[%clk 0:00:23.4]} 31... f5 {[%clk
0:01:08.9]} 32. b4 {[%clk 0:00:22.4]} 32... Nb7 {[%clk 0:00:59.1]} 33. f3 {[%clk
0:00:20.3]} 33... Nd2 {[%clk 0:00:46.9]} 34. Bxd2 {[%clk 0:00:20.2]} 34... Rxd2
{[%clk 0:00:46.8]} 35. Ne3 {[%clk 0:00:19]} 35... Kh6 {[%clk 0:00:39.7]} 36. Ra7
{[%clk 0:00:19.6]} 36... b5 {[%clk 0:00:37.1]} 37. Rc1 {[%clk 0:00:19]} 37...
Re2 {[%clk 0:00:35.3]} 38. Nf1 {[%clk 0:00:17.8]} 38... e4 {[%clk 0:00:20.3]}
39. fxe4 {[%clk 0:00:16.3]} 39... Rxe4 {[%clk 0:00:16.2]} 40. Rc7 {[%clk
0:00:16.9]} 40... Nd8 {[%clk 0:00:10]} 41. h4 {[%clk 0:00:16.6]} 41... Kh5
{[%clk 0:00:09.4]} 42. Kg2 {[%clk 0:00:14.8]} 42... f4 {[%clk 0:00:06.7]} 43.
Kf3 {[%clk 0:00:13.9]} 1-0

[Event "Late-Titled-Tuesday-Blitz-November-28-2023"]
[Site "Chess.com"]
[Date "2023.11.28"]
[Round "2"]
[White "JaackCamel"]
[Black "Abduzhaparov"]
[Result "0-1"]
[WhiteElo "1995"]
[BlackElo "2391"]
[TimeControl "180+1"]
[EndTime "14:17:10 PST"]
[Termination "Abduzhaparov won on time"]

1. d4 {[%clk 0:02:13.2]} 1... d6 {[%clk 0:02:59.7]} 2. Nf3 {[%clk 0:02:11.4]}
2... Nf6 {[%clk 0:02:58.9]} 3. c4 {[%clk 0:02:10.7]} 3... Nbd7 {[%clk
0:02:59.1]} 4. Nc3 {[%clk 0:02:09.8]} 4... e5 {[%clk 0:02:59.3]} 5. e4 {[%clk
0:02:09.2]} 5... Be7 {[%clk 0:02:58.9]} 6. Be2 {[%clk 0:02:08.9]} 6... O-O
{[%clk 0:02:59.2]} 7. d5 {[%clk 0:02:05.2]} 7... Nc5 {[%clk 0:02:58.2]} 8. Qc2
{[%clk 0:02:01.8]} 8... a5 {[%clk 0:02:58.1]} 9. Be3 {[%clk 0:02:01.1]} 9... b6
{[%clk 0:02:57.7]} 10. h3 {[%clk 0:02:00.1]} 10... Nh5 {[%clk 0:02:57]} 11. Nxe5
{[%clk 0:01:50.5]} 11... dxe5 {[%clk 0:02:50.7]} 12. Bxh5 {[%clk 0:01:48.1]}
12... g6 {[%clk 0:02:50.6]} 13. Bg4 {[%clk 0:01:37.9]} 13... f5 {[%clk 0:02:49]}
14. exf5 {[%clk 0:01:35.6]} 14... gxf5 {[%clk 0:02:49.9]} 15. Be2 {[%clk
0:01:27.2]} 15... Bg5 {[%clk 0:02:49.3]} 16. Nd1 {[%clk 0:01:21.8]} 16... Bxe3
{[%clk 0:02:43.7]} 17. Nxe3 {[%clk 0:01:21.6]} 17... f4 {[%clk 0:02:43.7]} 18.
Ng4 {[%clk 0:01:18.6]} 18... e4 {[%clk 0:02:36.9]} 19. O-O-O {[%clk 0:01:03.9]}
19... Qg5 {[%clk 0:02:32.9]} 20. f3 {[%clk 0:00:58.2]} 20... Bf5 {[%clk
0:02:15.2]} 21. fxe4 {[%clk 0:00:42.9]} 21... Bxe4 {[%clk 0:02:11.2]} 22. Bd3
{[%clk 0:00:39.7]} 22... Bxd3 {[%clk 0:01:51.6]} 23. Rxd3 {[%clk 0:00:39.2]}
23... Nxd3+ {[%clk 0:01:52.1]} 24. Qxd3 {[%clk 0:00:38.4]} 24... f3+ {[%clk
0:01:52.3]} 25. Kc2 {[%clk 0:00:34.5]} 25... fxg2 {[%clk 0:01:51.5]} 26. Rg1
{[%clk 0:00:28.1]} 26... Qg6 {[%clk 0:01:43.5]} 27. Rxg2 {[%clk 0:00:24.5]}
27... Qxd3+ {[%clk 0:01:42.7]} 28. Kxd3 {[%clk 0:00:24.8]} 28... Kh8 {[%clk
0:01:42]} 29. Ne5 {[%clk 0:00:23.7]} 29... Rae8 {[%clk 0:01:37.8]} 30. Rg5
{[%clk 0:00:20.5]} 30... h6 {[%clk 0:01:21.8]} 31. Rh5 {[%clk 0:00:20.3]} 31...
Kg7 {[%clk 0:01:15.8]} 32. Ke4 {[%clk 0:00:18.9]} 32... Rf1 {[%clk 0:01:10.4]}
33. Kd4 {[%clk 0:00:13]} 33... Rd1+ {[%clk 0:00:56.2]} 34. Kc3 {[%clk
0:00:12.3]} 34... Rg1 {[%clk 0:00:53.2]} 35. Ng4 {[%clk 0:00:11.9]} 35... Rg3+
{[%clk 0:00:44.7]} 36. Kd4 {[%clk 0:00:11.7]} 36... Rf3 {[%clk 0:00:22.9]} 37.
Ne5 {[%clk 0:00:09.3]} 37... Rf4+ {[%clk 0:00:19.8]} 38. Kd3 {[%clk 0:00:08]}
38... Rf6 {[%clk 0:00:19.1]} 39. Kd4 {[%clk 0:00:07.4]} 39... Rf1 {[%clk
0:00:17.9]} 40. Kd3 {[%clk 0:00:07]} 40... Rg1 {[%clk 0:00:18.2]} 41. Rf5 {[%clk
0:00:05.8]} 41... Re7 {[%clk 0:00:15.9]} 42. Ng4 {[%clk 0:00:03.8]} 42... Rg3+
{[%clk 0:00:15.3]} 43. Kd4 {[%clk 0:00:03.2]} 43... Rxh3 {[%clk 0:00:15.8]} 44.
Ne5 {[%clk 0:00:03.1]} 44... Rh4+ {[%clk 0:00:15.9]} 45. Kd3 {[%clk 0:00:03.1]}
45... Rh2 {[%clk 0:00:14.3]} 46. Nf3 {[%clk 0:00:02.8]} 46... Rf2 {[%clk
0:00:13.5]} 0-1